bitfinex-derivatives/quotes_BTCF0:USTF0_20241221
["timestamp","ask_amount","ask_price","bid_price","bid_amount"]
[1734773985760,0.412588,98559.0,98558.0,8e-05]
[1734773987364,0.411588,98559.0,98558.0,8e-05]
[1734773987660,0.412588,98559.0,98558.0,8e-05]
[1734773988050,0.46386036,98559.0,98558.0,8e-05]
[1734773988759,0.47363499,98559.0,98558.0,8e-05]
[1734773988953,0.47663499,98559.0,98558.0,8e-05]
[1734773989155,0.47863499,98559.0,98558.0,8e-05]
[1734773989460,0.47463499,98559.0,98558.0,8e-05]
[1734773989649,0.47563499,98559.0,98558.0,8e-05]
[1734773990050,0.050757,98542.0,98541.0,0.18220705]
[1734773990348,0.050797,98542.0,98541.0,0.18220705]
[1734773990957,4e-05,98542.0,98540.0,0.0100225]
[1734773991160,4e-05,98542.0,98538.0,0.050759]
[1734773991360,0.050759,98540.0,98538.0,0.050759]
[1734773991559,4e-05,98539.0,98538.0,0.050759]
[1734773992452,0.050759,98538.0,98532.0,0.18220705]
[1734773992654,0.36084,98539.0,98532.0,0.18220705]
[1734773992655,0.050762,98533.0,98532.0,0.18220705]
[1734773992962,0.050802,98533.0,98532.0,0.18220705]
[1734773993558,0.050802,98533.0,98522.0,0.18220705]
[1734773993861,0.050762,98533.0,98532.0,0.002]
[1734773994256,0.4609,98538.0,98522.0,0.23297405]
[1734773994566,0.411565,98527.0,98526.0,0.00160233]
[1734773996555,0.411565,98527.0,98526.0,0.00260233]
[1734773997155,0.411565,98527.0,98526.0,0.00160233]
[1734773997361,0.411565,98527.0,98526.0,0.00260233]
[1734774003266,0.050765,98527.0,98526.0,0.00260233]
[1734774003466,0.411565,98527.0,98526.0,0.00260233]
[1734774004861,0.411565,98527.0,98526.0,0.00108]
[1734774005066,0.6608,98527.0,98510.0,7.304e-05]
[1734774005267,0.411573,98511.0,98510.0,7.304e-05]
[1734774005471,0.411613,98511.0,98510.0,7.304e-05]
[1734774005876,0.772413,98511.0,98510.0,7.304e-05]
[1734774006068,0.772413,98511.0,98492.0,0.18220705]
[1734774006277,0.411582,98493.0,98492.0,0.18220705]
[1734774006470,0.411622,98493.0,98492.0,0.18220705]
[1734774007170,0.41171508,98493.0,98492.0,0.18220705]
[1734774007470,0.050786,98486.0,98485.0,0.0015229]
[1734774008271,0.050826,98486.0,98485.0,0.0015229]
[1734774009671,0.057826,98486.0,98485.0,0.0015229]
[1734774010466,0.055826,98486.0,98485.0,0.0045229]
[1734774010677,0.051826,98486.0,98485.0,0.0055229]
[1734774012975,0.051826,98486.0,98485.0,0.004]
[1734774029083,0.051826,98486.0,98468.0,0.0337]
[1734774029084,0.050794,98470.0,98468.0,0.0337]
[1734774029487,0.050834,98470.0,98468.0,0.0337]
[1734774030392,0.050834,98470.0,98469.0,0.0343]
[1734774031294,0.050834,98470.0,98469.0,0.002]
[1734774032083,0.051834,98470.0,98469.0,0.002]
[1734774032284,0.051834,98470.0,98469.0,0.001]
[1734774032586,0.052834,98470.0,98469.0,0.001]
[1734774032785,0.050797,98464.0,98463.0,0.00152336]
[1734774033186,0.050837,98464.0,98463.0,0.00152336]
[1734774033984,0.057837,98464.0,98463.0,0.00152336]
[1734774034392,0.060837,98464.0,98463.0,0.00152336]
[1734774036395,0.21194533,98464.0,98463.0,0.00152336]
[1734774039291,0.060837,98464.0,98463.0,0.00152336]
[1734774043595,0.050798,98463.0,98462.0,0.050798]
[1734774043984,0.050838,98463.0,98462.0,0.050798]
[1734774044690,0.053838,98463.0,98462.0,0.050798]
[1734774045994,0.060838,98463.0,98462.0,0.050798]
[1734774046992,0.054838,98463.0,98462.0,0.050798]
[1734774047790,0.052838,98463.0,98462.0,0.050798]
[1734774048899,0.00204,98463.0,98451.0,0.18220705]
[1734774049093,0.050801,98457.0,98453.0,0.050803]
[1734774049295,0.050841,98457.0,98456.0,0.0332]
[1734774049999,0.050841,98457.0,98456.0,0.084001]
[1734774050198,0.051841,98457.0,98456.0,0.084001]
[1734774050697,0.052841,98457.0,98456.0,0.084001]
[1734774050903,0.052841,98457.0,98447.0,0.18220705]
[1734774050904,0.00204,98457.0,98447.0,0.18220705]
[1734774051103,0.050805,98449.0,98447.0,0.18220705]
[1734774051395,0.050845,98449.0,98447.0,0.18220705]
[1734774051985,0.050845,98449.0,98446.0,0.04508209]
[1734774052297,0.050845,98449.0,98446.0,0.01018209]
[1734774052489,0.050845,98449.0,98445.0,0.050807]
[1734774052990,0.056845,98449.0,98445.0,0.050807]
[1734774053191,0.056845,98449.0,98446.0,0.050806]
[1734774053593,0.059845,98449.0,98441.0,0.084009]
[1734774054091,0.059845,98449.0,98441.0,0.09413315]
[1734774054503,0.059845,98449.0,98444.0,0.050808]
[1734774054802,0.18104244,98449.0,98444.0,0.050808]
[1734774055697,0.13023744,98449.0,98447.0,0.050806]
[1734774056086,0.00904,98449.0,98447.0,0.050806]
[1734774057904,0.12114945,98453.0,98447.0,0.050806]
[1734774058202,0.12114945,98453.0,98452.0,0.050803]
[1734774058702,0.36088257,98463.0,98462.0,0.050798]
[1734774059202,8.257e-05,98463.0,98462.0,0.050798]
[1734774059996,0.00108257,98463.0,98462.0,0.055798]
[1734774061701,0.00108257,98463.0,98462.0,0.23827196]
[1734774065902,0.00108257,98463.0,98462.0,0.0655775]
[1734774066401,0.00108257,98463.0,98462.0,0.0990775]
[1734774066594,0.00108257,98463.0,98462.0,0.055798]
[1734774074105,0.00108257,98463.0,98462.0,0.005]
[1734774075100,0.050801,98456.0,98455.0,0.18247396]
[1734774075408,0.050804,98451.0,98450.0,8e-05]
[1734774075804,0.050844,98451.0,98450.0,8e-05]
[1734774077003,0.056844,98451.0,98450.0,0.00108]
[1734774077596,0.050844,98451.0,98450.0,8e-05]
[1734774077803,0.052844,98451.0,98450.0,0.00708]
[1734774079910,0.06284545,98451.0,98450.0,0.00708]
[1734774082616,0.052844,98451.0,98450.0,0.00708]
[1734774084613,0.00204,98451.0,98450.0,0.06786341]
[1734774085107,0.00204,98451.0,98450.0,1.42786341]
[1734774085307,0.15110833,98456.0,98455.0,0.050802]
[1734774085507,0.1817848,98462.0,98461.0,0.050799]
[1734774086110,8.257e-05,98463.0,98461.0,0.050799]
[1734774087418,0.001,98462.0,98461.0,0.051799]
[1734774087809,0.00108257,98463.0,98461.0,0.051799]
[1734774088115,0.00108257,98463.0,98461.0,0.053799]
[1734774088510,0.00108257,98463.0,98462.0,0.0314]
[1734774089915,0.00108257,98463.0,98462.0,0.04664]
[1734774090118,0.00108257,98463.0,98462.0,0.05064]
[1734774090819,0.00108257,98463.0,98462.0,0.05164]
[1734774092315,0.00108257,98463.0,98462.0,0.06149377]
[1734774093017,0.00108257,98463.0,98462.0,0.04625377]
[1734774093315,0.00108257,98463.0,98462.0,0.005]
[1734774096711,0.00108257,98463.0,98462.0,0.001]
[1734774096913,0.00108257,98463.0,98462.0,0.004]
[1734774101515,1e-08,98463.0,98462.0,0.004]
[1734774102021,0.001,98463.0,98462.0,0.004]
[1734774103027,0.001,98463.0,98462.0,1.364]
[1734774104017,0.001,98463.0,98462.0,1.362]
[1734774104224,0.001,98463.0,98462.0,1.365]
[1734774105416,0.001,98463.0,98462.0,1.7258]
[1734774105616,0.45158875,98479.0,98462.0,1.7238]
[1734774105816,0.001,98463.0,98462.0,1.7268]
[1734774107419,0.001,98463.0,98462.0,1.7238]
[1734774107725,0.001,98463.0,98462.0,1.7268]
[1734774107927,0.45158875,98479.0,98463.0,0.050797]
[1734774108331,0.45158875,98479.0,98478.0,0.05079]
[1734774108925,0.3608,98479.0,98478.0,0.05079]
[1734774109117,0.3608,98479.0,98464.0,0.3608]
[1734774109118,0.050792,98475.0,98464.0,0.3608]
[1734774109521,4e-05,98465.0,98463.0,0.002]
[1734774109724,0.050797,98464.0,98463.0,0.002]
[1734774109921,0.050837,98464.0,98463.0,0.002]
[1734774110522,0.050837,98464.0,98462.0,0.18547396]
[1734774110728,0.0315,98463.0,98462.0,0.18547396]
[1734774110928,0.03154,98463.0,98462.0,0.18547396]
[1734774111223,0.03154,98463.0,98462.0,0.18247396]
[1734774111928,0.03154,98463.0,98462.0,0.002]
[1734774112933,0.03154,98463.0,98462.0,0.005]
[1734774113430,0.1233343,98463.0,98462.0,0.005]
[1734774114724,0.03254,98463.0,98462.0,0.005]
[1734774115924,0.00104,98463.0,98462.0,0.005]
[1734774116426,0.00104,98463.0,98462.0,0.18747396]
[1734774116616,0.00104,98463.0,98462.0,1.54747396]
[1734774117631,0.00104,98463.0,98462.0,1.365]
[1734774117823,0.00104,98463.0,98462.0,0.005]
[1734774124538,0.00104,98463.0,98462.0,0.055798]
[1734774126045,0.051838,98463.0,98462.0,0.005]
[1734774126235,0.0508,98458.0,98457.0,0.30396296]
[1734774126631,0.05084,98458.0,98457.0,0.30396296]
[1734774127345,0.05084,98458.0,98457.0,0.003]
[1734774127546,0.05084,98458.0,98457.0,0.005]
[1734774127735,0.05184,98458.0,98457.0,0.005]
[1734774133550,0.05184,98458.0,98448.0,0.00012698]
[1734774133746,0.411605,98449.0,98447.0,0.18262378]
[1734774133951,0.050806,98447.0,98446.0,0.18262378]
[1734774134338,0.050846,98447.0,98446.0,0.18262378]
[1734774134657,0.082946,98447.0,98446.0,0.18262378]
[1734774134846,0.08302242,98447.0,98446.0,0.18262378]
[1734774135347,0.08302242,98447.0,98431.0,0.050814]
[1734774135348,0.050814,98432.0,98431.0,0.050814]
[1734774135735,0.050854,98432.0,98431.0,0.050814]
[1734774136652,0.050816,98427.0,98426.0,0.18262378]
[1734774136951,0.050856,98427.0,98426.0,0.18262378]
[1734774137145,4e-05,98427.0,98426.0,0.18262378]
[1734774137541,0.003,98432.0,98431.0,0.050814]
[1734774137941,0.0907576,98440.0,98437.0,0.050811]
[1734774138145,0.0907576,98440.0,98438.0,0.05081]
[1734774138652,0.1415676,98440.0,98438.0,0.05081]
[1734774139248,0.05081,98440.0,98438.0,0.05081]
[1734774139450,0.05181,98440.0,98438.0,0.05081]
[1734774139644,0.050811,98437.0,98436.0,8e-05]
[1734774140452,0.050851,98437.0,98436.0,8e-05]
[1734774141049,0.051851,98437.0,98436.0,8e-05]
[1734774141350,0.052851,98437.0,98436.0,8e-05]
[1734774144153,0.00204,98437.0,98436.0,8e-05]
[1734774146755,0.052851,98437.0,98436.0,8e-05]
[1734774148261,0.1436086,98437.0,98436.0,8e-05]
[1734774148653,0.15374455,98437.0,98417.0,0.18414787]
[1734774148853,0.05082,98419.0,98417.0,0.18414787]
[1734774149054,0.00015167,98418.0,98417.0,0.18414787]
[1734774149358,0.03075167,98418.0,98417.0,0.18414787]
[1734774149750,0.03075167,98418.0,98417.0,0.00152409]
[1734774150256,0.03375167,98418.0,98417.0,0.00152409]
[1734774151350,0.03575167,98418.0,98417.0,0.00152409]
[1734774152865,0.03275167,98418.0,98417.0,0.00152409]
[1734774153065,0.03675167,98418.0,98417.0,0.00152409]
[1734774157182,0.39455167,98418.0,98400.0,0.28262378]
[1734774157472,0.36084,98401.0,98400.0,0.28262378]
[1734774157958,0.41167,98401.0,98400.0,0.28262378]
[1734774158953,0.77347,98401.0,98400.0,0.28262378]
[1734774159160,0.77355772,98401.0,98400.0,0.23212378]
[1734774159661,0.77355772,98401.0,98400.0,0.0495]
[1734774159662,0.78350215,98401.0,98400.0,0.0495]
[1734774160466,0.78250215,98401.0,98400.0,0.0495]
[1734774161864,0.050834,98393.0,98392.0,9.399e-05]
[1734774162059,0.411634,98393.0,98392.0,9.399e-05]
[1734774162257,0.411674,98393.0,98392.0,9.399e-05]
[1734774164066,0.412674,98393.0,98392.0,9.399e-05]
[1734774169378,0.412674,98393.0,98377.0,0.00152471]
[1734774169579,0.411642,98378.0,98377.0,0.00152471]
[1734774169764,0.411682,98378.0,98377.0,0.00152471]
[1734774172084,0.412682,98378.0,98377.0,0.00152471]
[1734774182408,0.50295432,98378.0,98377.0,0.00152471]
[1734774183903,0.412682,98378.0,98377.0,0.00152471]
[1734774189883,0.46233062,98378.0,98377.0,0.00152471]
[1734774191586,0.46133062,98378.0,98377.0,0.00152471]
[1734774191887,0.46233062,98378.0,98377.0,0.00152471]
[1734774197791,0.10153062,98378.0,98377.0,0.00152471]
[1734774197991,0.64411542,98378.0,98377.0,0.00152471]
[1734774201887,0.46233062,98378.0,98377.0,0.00152471]
[1734774208501,0.46233062,98378.0,98377.0,0.18414849]
[1734774209302,0.46233062,98378.0,98377.0,0.18262378]
[1734774213907,0.10153062,98378.0,98377.0,0.18262378]
[1734774214109,0.46233062,98378.0,98377.0,0.18262378]
[1734774218004,0.46240926,98378.0,98377.0,0.18262378]
[1734774218403,0.46240926,98378.0,98375.0,0.18302555]
[1734774218607,0.050842,98377.0,98375.0,0.18302555]
[1734774218804,4e-05,98376.0,98375.0,0.18302555]
[1734774220403,0.05085,98362.0,98358.0,0.00993911]
[1734774220603,0.41165,98362.0,98358.0,0.00993911]
[1734774220799,0.41169,98362.0,98358.0,0.00993911]
[1734774221106,0.050851,98359.0,98358.0,0.00993911]
[1734774221306,0.050851,98359.0,98357.0,0.001525]
[1734774221506,0.050891,98359.0,98357.0,0.001525]
[1734774221709,4e-05,98358.0,98357.0,0.001525]
[1734774222106,0.050856,98350.0,98349.0,0.27519838]
[1734774222310,0.411656,98350.0,98349.0,0.27519838]
[1734774222502,0.411696,98350.0,98349.0,0.27519838]
[1734774223306,0.415696,98350.0,98349.0,0.0317]
[1734774224402,0.422696,98350.0,98349.0,0.0317]
[1734774225814,0.411696,98350.0,98349.0,0.0317]
[1734774226715,0.412696,98350.0,98349.0,0.0317]
[1734774227801,0.413696,98350.0,98349.0,0.0317]
[1734774230116,0.41380846,98350.0,98349.0,0.0317]
[1734774230818,0.41280846,98350.0,98349.0,0.0317]
[1734774238841,0.050859,98344.0,98342.0,0.0647]
[1734774239324,4e-05,98343.0,98342.0,0.0647]
[1734774241427,0.05086,98342.0,98341.0,0.00996933]
[1734774241628,0.05086,98342.0,98340.0,0.01538456]
[1734774242020,4e-05,98341.0,98340.0,0.01538456]
[1734774243513,0.00104,98341.0,98340.0,0.01538456]
[1734774243728,0.00104,98341.0,98340.0,0.02534736]
[1734774244339,0.00204,98341.0,98340.0,0.02534736]
[1734774245727,0.00204,98341.0,98340.0,0.01006736]
[1734774246427,0.0927369,98341.0,98340.0,0.01006736]
[1734774247034,0.0927369,98341.0,98340.0,0.00010456]
[1734774247332,0.4535369,98341.0,98340.0,0.00010456]
[1734774247847,0.36284,98341.0,98340.0,0.00010456]
[1734774250436,0.00204,98341.0,98340.0,0.00010456]
[1734774250840,0.12317217,98341.0,98340.0,0.00010456]
[1734774252441,0.00204,98341.0,98340.0,0.00010456]
[1734774264751,0.00011246,98350.0,98349.0,0.050857]
[1734774264954,0.00011246,98350.0,98349.0,0.411657]
[1734774265652,0.050845,98371.0,98354.0,0.050854]
[1734774266053,0.06512484,98370.0,98354.0,0.050854]
[1734774266253,0.06512484,98370.0,98350.0,0.09328]
[1734774266254,0.18188921,98361.0,98360.0,0.050851]
[1734774266762,0.18197637,98361.0,98360.0,0.050851]
[1734774267748,8.716e-05,98361.0,98358.0,0.24349838]
[1734774267941,0.050851,98359.0,98358.0,0.24349838]
[1734774268398,0.050891,98359.0,98358.0,0.24349838]
[1734774269042,0.050891,98359.0,98357.0,0.00990106]
[1734774269254,0.050891,98359.0,98357.0,0.050852]
[1734774269451,4e-05,98358.0,98357.0,0.050852]
[1734774271856,0.00104,98358.0,98357.0,0.050852]
[1734774273251,4e-05,98358.0,98357.0,0.050852]
[1734774273452,0.00104,98358.0,98357.0,0.050852]
[1734774273852,4e-05,98358.0,98357.0,0.050852]
[1734774274756,4e-05,98358.0,98357.0,0.081952]
[1734774275815,4e-05,98358.0,98357.0,0.442752]
[1734774276768,0.00104,98358.0,98357.0,0.442752]
[1734774287376,0.050833,98396.0,98376.0,0.050843]
[1734774287668,0.18188921,98393.0,98392.0,0.050834]
[1734774289469,0.18988921,98393.0,98392.0,0.050834]
[1734774289674,0.008,98393.0,98392.0,0.050834]
[1734774290168,0.012,98393.0,98392.0,0.050834]
[1734774293970,0.03259673,98393.0,98392.0,0.050834]
[1734774294170,0.03259673,98393.0,98386.0,0.0103642]
[1734774294374,0.03259673,98393.0,98380.0,0.08040484]
[1734774294570,4e-05,98387.0,98386.0,0.050838]
[1734774294880,4e-05,98387.0,98380.0,0.02558117]
[1734774295186,4e-05,98381.0,98380.0,0.07642217]
[1734774295370,4e-05,98381.0,98380.0,0.01923325]
[1734774295371,0.02684226,98381.0,98380.0,0.01923325]
[1734774295590,0.04909016,98381.0,98379.0,0.30618269]
[1734774295879,0.02059673,98381.0,98374.0,0.050843]
[1734774296179,0.04743496,98380.0,98373.0,0.27272455]
[1734774296385,0.02059673,98380.0,98379.0,0.050841]
[1734774297376,0.02159673,98380.0,98379.0,0.050841]
[1734774298274,0.02359673,98380.0,98379.0,0.050841]
[1734774298982,0.02159673,98380.0,98379.0,0.050841]
[1734774299278,0.02359673,98380.0,98379.0,0.050841]
[1734774301475,0.02359673,98380.0,98379.0,0.08214476]
[1734774301875,0.003,98380.0,98379.0,0.10640724]
[1734774305888,0.003,98380.0,98379.0,0.10556951]
[1734774307265,0.003,98380.0,98379.0,0.1051812]
[1734774307702,0.053841,98380.0,98379.0,0.0543402]
[1734774308693,0.050844,98374.0,98373.0,0.24341441]
[1734774308884,0.411644,98374.0,98373.0,0.24341441]
[1734774309090,0.411644,98374.0,98360.0,0.11597584]
[1734774309091,0.3608,98374.0,98362.0,0.01024213]
[1734774309288,0.411648,98366.0,98361.0,0.29426441]
[1734774309483,4e-05,98363.0,98361.0,0.29426441]
[1734774310201,4e-05,98362.0,98361.0,0.29426441]
[1734774310794,4e-05,98362.0,98361.0,0.30439503]
[1734774310996,4e-05,98362.0,98361.0,0.06098062]
[1734774311995,4e-05,98362.0,98361.0,0.01013062]
[1734774312187,0.03014,98362.0,98357.0,0.24341441]
[1734774312382,0.3608,98358.0,98357.0,0.24341441]
[1734774312577,0.411692,98358.0,98356.0,0.00152483]
[1734774312993,4e-05,98357.0,98356.0,0.00152483]
[1734774314585,0.050855,98353.0,98352.0,0.35173468]
[1734774314801,0.050855,98353.0,98352.0,0.3416]
[1734774314990,0.050895,98353.0,98352.0,0.3416]
[1734774315886,0.051895,98353.0,98352.0,0.3416]
[1734774316081,0.052895,98353.0,98352.0,0.3416]
[1734774319892,0.052895,98353.0,98342.0,0.08206]
[1734774319893,0.05086,98343.0,98342.0,0.0312]
[1734774320200,0.4117,98343.0,98342.0,0.0312]
[1734774320497,0.4117,98343.0,98342.0,0.05089684]
[1734774321203,0.4147,98343.0,98342.0,0.05089684]
[1734774321590,0.4207,98343.0,98342.0,0.050895]
[1734774322098,0.4207,98343.0,98342.0,0.05090386]
[1734774322601,0.36984,98343.0,98342.0,0.05090386]
[1734774324301,0.36984,98343.0,98342.0,0.03993124]
[1734774324499,0.36984,98343.0,98342.0,0.0509256]
[1734774327396,0.36984,98343.0,98342.0,0.05091844]
[1734774330210,0.36984,98343.0,98342.0,0.05086462]
[1734774330603,0.36984,98343.0,98342.0,0.0312]
[1734774330801,0.36984,98343.0,98342.0,0.05086363]
[1734774331707,0.36984,98343.0,98342.0,0.03993816]
[1734774333208,0.36984,98343.0,98342.0,0.0399574]
[1734774333600,0.36984,98343.0,98342.0,0.0087574]
[1734774334205,0.38255033,98343.0,98342.0,0.0087574]
[1734774336199,0.38055033,98343.0,98342.0,0.0087574]
[1734774337209,0.37555033,98343.0,98342.0,0.0087574]
[1734774337604,0.37455033,98343.0,98342.0,0.0087574]
[1734774337810,0.37555033,98343.0,98342.0,0.0087574]
[1734774339109,0.37555033,98343.0,98325.0,0.24341441]
[1734774339110,0.050869,98326.0,98325.0,0.24341441]
[1734774339325,0.772469,98326.0,98325.0,4.1e-07]
[1734774339503,0.050876,98312.0,98298.0,0.42674489]
[1734774339808,0.411716,98312.0,98298.0,0.42674489]
[1734774340199,0.050881,98303.0,98300.0,0.47529462]
[1734774340403,0.3608,98302.0,98300.0,0.47629462]
[1734774340613,0.36084,98302.0,98300.0,0.47629462]
[1734774341504,0.36184,98302.0,98300.0,0.47629462]
[1734774341808,0.36184,98302.0,98300.0,0.162055]
[1734774342014,0.36184,98302.0,98301.0,0.13255785]
[1734774342712,0.36284,98302.0,98301.0,0.13255785]
[1734774343211,0.36284,98302.0,98301.0,1.49255785]
[1734774346513,0.36284,98302.0,98301.0,0.13255785]
[1734774347902,0.31294,98302.0,98301.0,0.13255785]
[1734774349903,0.002,98302.0,98301.0,0.14783785]
[1734774350108,0.36087167,98312.0,98311.0,0.050876]
[1734774351200,0.36087167,98312.0,98311.0,0.05946141]
[1734774351445,0.36087167,98312.0,98311.0,0.050876]
[1734774351642,0.36187167,98312.0,98311.0,0.0594616]
[1734774354312,0.36187167,98312.0,98309.0,0.01596485]
[1734774354623,0.05088,98305.0,98302.0,0.082681]
[1734774354809,4e-05,98310.0,98302.0,0.0318]
[1734774355321,4e-05,98310.0,98309.0,8e-05]
[1734774355510,4e-05,98310.0,98309.0,0.00108]
[1734774356111,4e-05,98310.0,98309.0,0.00208]
[1734774356718,0.00104,98310.0,98309.0,0.00208]
[1734774356918,0.00104,98310.0,98309.0,0.00108]
[1734774361311,0.36184,98310.0,98309.0,0.00108]
[1734774366220,0.5131592,98310.0,98309.0,0.00108]
[1734774368026,0.36184,98310.0,98309.0,0.00108]
[1734774369530,0.41463288,98310.0,98309.0,0.00108]
[1734774370415,0.41463288,98310.0,98309.0,0.051957]
[1734774372630,0.36184,98310.0,98309.0,0.051957]
[1734774376034,0.36184,98310.0,98309.0,0.00108]
[1734774377842,0.36184,98310.0,98309.0,0.051957]
[1734774378025,0.00063168,98312.0,98311.0,0.050876]
[1734774378220,0.15130458,98314.0,98309.0,0.00108]
[1734774378423,0.15130458,98314.0,98313.0,0.050875]
[1734774378629,0.15130458,98314.0,98313.0,0.050955]
[1734774379149,0.36132001,98325.0,98313.0,8e-05]
[1734774379150,0.12103925,98317.0,98313.0,8e-05]
[1734774379426,0.00106475,98314.0,98313.0,0.050875]
[1734774379630,0.072204,98317.0,98316.0,0.050874]
[1734774380735,0.15130458,98329.0,98328.0,0.050868]
[1734774381124,0.15130458,98329.0,98328.0,0.050948]
[1734774382343,0.15330458,98329.0,98328.0,0.050948]
[1734774383239,0.002,98329.0,98328.0,0.050948]
[1734774385036,0.002,98329.0,98328.0,0.06693345]
[1734774387770,0.002,98329.0,98328.0,0.42773345]
[1734774389628,0.002,98329.0,98328.0,0.44301345]
[1734774397940,0.002,98329.0,98328.0,0.42773345]
[1734774399144,0.002,98329.0,98328.0,8e-05]
[1734774399340,0.0345,98329.0,98328.0,8e-05]
[1734774399741,0.0647,98329.0,98328.0,8e-05]
[1734774400847,0.050876,98311.0,98310.0,0.24791741]
[1734774401081,0.411676,98311.0,98310.0,0.18272442]
[1734774401365,0.411676,98311.0,98307.0,0.050878]
[1734774401366,0.3608,98311.0,98307.0,0.050878]
[1734774401542,0.083377,98310.0,98307.0,0.050878]
[1734774401736,4e-05,98308.0,98307.0,0.050878]
[1734774403441,4e-05,98308.0,98304.0,0.01445832]
[1734774403644,4e-05,98308.0,98302.0,0.01528]
[1734774403949,4e-05,98303.0,98302.0,0.0300634]
[1734774404753,4e-05,98303.0,98302.0,0.01528]
[1734774404953,4e-05,98303.0,98302.0,0.01828]
[1734774405485,0.00204,98303.0,98302.0,0.01828]
[1734774405644,0.00204,98303.0,98302.0,0.003]
[1734774409047,0.09106896,98311.0,98302.0,0.3638]
[1734774409358,0.09054895,98311.0,98310.0,1.771757]
[1734774409750,0.09054895,98311.0,98310.0,1.787037]
[1734774409954,0.09054163,98315.0,98314.0,0.050875]
[1734774410160,0.15097449,98324.0,98323.0,0.05087]
[1734774410456,0.15097449,98324.0,98323.0,0.05095]
[1734774411657,0.36140001,98332.0,98323.0,0.05095]
[1734774411658,0.36140001,98332.0,98331.0,0.050866]
[1734774411855,0.3608,98332.0,98331.0,0.050866]
[1734774412456,0.3608,98332.0,98331.0,0.050946]
[1734774412861,0.36132001,98337.0,98331.0,0.050946]
[1734774412862,0.36132001,98337.0,98336.0,0.050863]
[1734774413063,0.3608,98337.0,98336.0,0.050863]
[1734774413265,0.3608,98337.0,98336.0,0.050943]
[1734774413462,0.0318,98344.0,98341.0,0.05086]
[1734774413660,0.0318,98344.0,98336.0,8e-05]
[1734774413868,0.0318,98344.0,98342.0,0.05086]
[1734774414259,0.0318,98344.0,98343.0,8e-05]
[1734774414956,0.0358,98344.0,98343.0,8e-05]
[1734774416169,0.0438,98344.0,98343.0,8e-05]
[1734774416565,0.0398,98344.0,98343.0,8e-05]
[1734774416765,0.0438,98344.0,98343.0,8e-05]
[1734774420375,0.012,98344.0,98343.0,8e-05]
[1734774421163,0.062859,98344.0,98343.0,8e-05]
[1734774424773,0.07634203,98344.0,98343.0,8e-05]
[1734774427182,0.012,98344.0,98343.0,8e-05]
[1734774431373,0.012,98344.0,98343.0,0.00865482]
[1734774431995,0.012,98344.0,98343.0,0.00865491]
[1734774432381,0.012,98344.0,98343.0,8e-05]
[1734774437992,0.012,98344.0,98343.0,0.01410863]
[1734774440274,0.012,98344.0,98343.0,0.04510863]
[1734774440885,0.15097449,98353.0,98352.0,0.050855]
[1734774441285,0.15097449,98353.0,98352.0,0.050935]
[1734774442203,0.15497449,98353.0,98352.0,0.050935]
[1734774442987,0.16297449,98353.0,98352.0,0.050935]
[1734774445089,0.18158304,98361.0,98352.0,0.50230111]
[1734774445292,0.18158304,98361.0,98360.0,0.411651]
[1734774445596,0.13168304,98361.0,98360.0,0.411651]
[1734774445782,0.0773141,98361.0,98360.0,1.771651]
[1734774445988,0.0773141,98361.0,98360.0,1.771731]
[1734774446694,0.15173172,98382.0,98381.0,0.05084]
[1734774446887,0.12103172,98382.0,98381.0,0.05084]
[1734774447285,0.12103172,98382.0,98381.0,0.05092]
[1734774447990,0.36132001,98388.0,98386.0,0.050838]
[1734774448393,0.36132001,98388.0,98386.0,0.050918]
[1734774448688,0.00052001,98388.0,98386.0,0.050918]
[1734774448896,0.12103172,98392.0,98386.0,0.050918]
[1734774449288,0.0937,98394.0,98386.0,0.050918]
[1734774450200,0.00304,98387.0,98386.0,0.050918]
[1734774450495,0.00404,98387.0,98386.0,0.050918]
[1734774456084,0.00404,98387.0,98386.0,1.410918]
[1734774456393,4e-05,98387.0,98386.0,1.52519394]
[1734774456596,4e-05,98387.0,98386.0,1.52619394]
[1734774458288,0.0303,98416.0,98413.0,0.050823]
[1734774458500,0.0303,98416.0,98414.0,0.050823]
[1734774458797,0.0303,98416.0,98415.0,8e-05]
[1734774459597,0.0353,98416.0,98415.0,8e-05]
[1734774459798,0.0423,98416.0,98415.0,8e-05]
[1734774460201,0.0373,98416.0,98415.0,8e-05]
[1734774460388,0.01,98416.0,98415.0,8e-05]
[1734774461197,0.008,98416.0,98415.0,8e-05]
[1734774462398,0.003,98416.0,98415.0,8e-05]
[1734774462594,0.0313,98426.0,98415.0,0.00508]
[1734774462797,0.0313,98426.0,98419.0,0.3608]
[1734774463105,0.0313,98426.0,98425.0,0.050897]
[1734774463303,0.0331,98434.0,98425.0,0.050897]
[1734774463304,0.0331,98434.0,98425.0,8e-05]
[1734774463601,0.0331,98434.0,98433.0,0.050893]
[1734774465585,0.0361,98434.0,98433.0,0.050893]
[1734774465792,0.0381,98434.0,98433.0,0.050893]
[1734774466387,0.0361,98434.0,98433.0,0.050893]
[1734774466594,0.0381,98434.0,98433.0,8e-05]
[1734774466993,0.088913,98434.0,98433.0,8e-05]
[1734774467893,0.10169017,98434.0,98433.0,8e-05]
[1734774469792,0.050817,98426.0,98418.0,0.050821]
[1734774469994,0.3608,98420.0,98418.0,0.050821]
[1734774470190,0.03064,98419.0,98418.0,0.050821]
[1734774472305,4e-05,98419.0,98418.0,0.050821]
[1734774472524,4e-05,98419.0,98418.0,0.053821]
[1734774472705,4e-05,98419.0,98418.0,0.054821]
[1734774472901,0.15373946,98434.0,98418.0,1.414821]
[1734774473203,0.15373946,98434.0,98433.0,0.050893]
[1734774473401,0.12063946,98434.0,98433.0,0.050893]
[1734774474303,0.12363946,98434.0,98433.0,0.050893]
[1734774474701,0.003,98434.0,98433.0,0.050893]
[1734774475205,0.005,98434.0,98433.0,0.050893]
[1734774477812,0.005,98434.0,98433.0,0.083293]
[1734774479198,0.005,98434.0,98433.0,0.19713591]
[1734774481208,0.005,98434.0,98433.0,0.083293]